bitfinex-derivatives/quotes_BTCF0:USTF0_20250729
["timestamp","ask_amount","ask_price","bid_price","bid_amount"]
[1753764015265,0.20257,118780.0,118770.0,1.23155572]
[1753764016476,0.20257,118780.0,118770.0,1.17106974]
[1753764016477,0.2173,118780.0,118770.0,1.17106974]
[1753764016778,0.2173,118780.0,118770.0,1.23155572]
[1753764017279,0.2193,118780.0,118770.0,1.23155572]
[1753764017978,0.2213,118780.0,118770.0,1.23155572]
[1753764018881,0.65286168,118780.0,118770.0,0.22888988]
[1753764019075,1.03225742,118780.0,118770.0,0.22888988]
[1753764019485,0.82125158,118780.0,118770.0,0.22888988]
[1753764019684,1.03225742,118780.0,118770.0,0.22888988]
[1753764019888,1.20064142,118780.0,118770.0,0.22888988]
[1753764020276,1.70064142,118780.0,118770.0,0.22888988]
[1753764020778,1.34871194,118780.0,118770.0,0.22888988]
[1753764021683,1.18032794,118780.0,118770.0,0.22888988]
[1753764024387,1.18032794,118780.0,118770.0,0.1684039]
[1753764025289,1.18032794,118780.0,118770.0,0.22888988]
[1753764026182,1.18032794,118780.0,118770.0,0.1684039]
[1753764026383,1.18032794,118780.0,118770.0,0.22888988]
[1753764026787,1.18032794,118780.0,118770.0,0.1684039]
[1753764026985,0.236924,118770.0,118760.0,0.0842037]
[1753764027183,0.2148382,118760.0,118750.0,0.31311908]
[1753764027487,0.94744428,118760.0,118750.0,0.2526331]
[1753764027680,0.95600003,118760.0,118750.0,0.2526331]
[1753764028488,0.95600003,118760.0,118750.0,0.2536331]
[1753764029083,1.16635624,118760.0,118750.0,0.2536331]
[1753764029284,1.16635624,118760.0,118750.0,0.31411908]
[1753764029991,1.16735624,118760.0,118750.0,0.31411908]
[1753764032493,1.16735624,118760.0,118750.0,0.2536331]
[1753764033300,1.44844428,118760.0,118750.0,0.2536331]
[1753764036494,1.16735624,118760.0,118750.0,0.2536331]
[1753764039196,1.44844428,118760.0,118750.0,0.2536331]
[1753764039888,1.16735624,118760.0,118750.0,0.2536331]
[1753764040499,1.16735624,118760.0,118750.0,0.3098031]
[1753764041098,1.16735624,118760.0,118750.0,0.2779131]
[1753764042498,1.16735624,118760.0,118750.0,0.3098031]
[1753764046796,1.16735624,118760.0,118750.0,0.3312131]
[1753764053402,1.44844428,118760.0,118750.0,0.39169908]
[1753764055802,1.44844428,118760.0,118750.0,0.06148598]
[1753764056002,1.44844428,118760.0,118750.0,0.1694323]
[1753764058207,0.8862682,118760.0,118750.0,0.1694323]
[1753764058407,1.16735624,118760.0,118750.0,0.1694323]
[1753764058603,1.16735624,118760.0,118750.0,0.1938723]
[1753764059109,1.44844428,118760.0,118750.0,0.1938723]
[1753764059504,1.84007624,118760.0,118750.0,0.2891023]
[1753764060003,1.84007624,118760.0,118750.0,0.34958828]
[1753764060202,1.5589882,118760.0,118750.0,0.34958828]
[1753764060503,1.33388,118760.0,118750.0,0.34958828]
[1753764060703,1.27388,118760.0,118750.0,0.64606416]
[1753764060900,1.29824,118760.0,118750.0,0.64606416]
[1753764061705,0.79824,118760.0,118750.0,0.64606416]
[1753764061902,0.79824,118760.0,118750.0,0.36497612]
[1753764062301,0.79824,118760.0,118750.0,0.2891023]
[1753764062302,0.84879,118760.0,118750.0,0.2891023]
[1753764062501,0.14121,118760.0,118750.0,0.57019034]
[1753764062707,0.81401,118760.0,118750.0,0.57019034]
[1753764063105,0.81401,118760.0,118750.0,0.64596638]
[1753764063302,0.81401,118760.0,118750.0,0.36487834]
[1753764063809,0.17591,118760.0,118750.0,0.36487834]
[1753764064005,0.81397,118760.0,118750.0,0.36487834]
[1753764064311,0.83649,118760.0,118750.0,0.2891023]
[1753764064512,0.87119,118760.0,118750.0,0.2891023]
[1753764065205,0.88578,118760.0,118750.0,0.2891023]
[1753764065406,0.89552,118760.0,118750.0,0.2891023]
[1753764065709,0.22276,118760.0,118750.0,0.2891023]
[1753764065909,0.89552,118760.0,118750.0,0.2891023]
[1753764066903,0.88093,118760.0,118750.0,0.2891023]
[1753764068004,0.88093,118760.0,118750.0,0.57019034]
[1753764068404,0.89552,118760.0,118750.0,0.2891023]
[1753764069814,1.17660804,118760.0,118750.0,0.2891023]
[1753764070112,1.17660804,118760.0,118750.0,0.36487834]
[1753764070609,1.17660804,118760.0,118750.0,0.34032834]
[1753764070819,1.34502624,118760.0,118750.0,0.25509834]
[1753764071001,1.34502624,118760.0,118750.0,0.24520834]
[1753764071206,1.62611428,118760.0,118750.0,0.24520834]
[1753764071511,1.62611428,118760.0,118750.0,0.1694323]
[1753764071706,1.62611428,118760.0,118750.0,0.001]
[1753764071911,1.62611428,118760.0,118750.0,0.14499393]
[1753764072114,1.62611428,118760.0,118740.0,0.1263315]
[1753764072115,1.75243418,118760.0,118740.0,0.20210754]
[1753764072414,0.47385044,118750.0,118740.0,0.3368891]
[1753764072613,0.57385044,118750.0,118740.0,0.3614391]
[1753764073010,0.57385044,118750.0,118740.0,0.2947781]
[1753764073217,0.57385044,118750.0,118740.0,0.37055414]
[1753764073513,0.57385044,118750.0,118740.0,0.2526671]
[1753764074303,0.57385044,118750.0,118740.0,0.2546671]
[1753764074705,0.1793866,118740.0,118730.0,0.32845754]
[1753764074909,1.27821464,118740.0,118730.0,0.2105667]
[1753764075407,1.27821464,118740.0,118730.0,0.1684519]
[1753764075608,1.27821464,118740.0,118720.0,0.18477044]
[1753764075802,0.47554884,118730.0,118720.0,0.2774588]
[1753764076006,0.61388262,118730.0,118720.0,0.2774588]
[1753764076401,0.61388262,118730.0,118720.0,0.2526988]
[1753764076803,0.179415,118720.0,118710.0,0.32849694]
[1753764077011,1.55961108,118720.0,118710.0,0.35325694]
[1753764078208,1.27852304,118720.0,118710.0,0.2774809]
[1753764078514,1.27852304,118720.0,118710.0,0.2804809]
[1753764079114,1.34627111,118720.0,118710.0,0.2804809]
[1753764079716,1.34627111,118720.0,118710.0,0.2383588]
[1753764079917,1.62735915,118720.0,118710.0,0.2383588]
[1753764080119,1.34627111,118720.0,118710.0,0.2383588]
[1753764081319,1.84627111,118720.0,118710.0,0.2383588]
[1753764081508,2.12735915,118720.0,118710.0,0.2383588]
[1753764081713,1.84627111,118720.0,118710.0,0.2383588]
[1753764082011,1.84627111,118720.0,118710.0,0.2413588]
[1753764083117,2.12735915,118720.0,118710.0,0.006]
[1753764084714,2.12735915,118720.0,118710.0,0.1744891]
[1753764085020,2.12735915,118720.0,118710.0,0.006]
[1753764085419,2.12735915,118720.0,118710.0,0.1744891]
[1753764088320,2.12735915,118720.0,118710.0,0.1992491]
[1753764099233,2.12735915,118720.0,118710.0,0.1962491]
[1753764099432,2.12735915,118720.0,118710.0,0.1972491]
[1753764100032,2.12735915,118720.0,118710.0,0.1942491]
[1753764100226,2.12735915,118720.0,118710.0,0.1962491]
[1753764108135,2.14676293,118720.0,118710.0,0.1962491]
[1753764108844,2.14676293,118720.0,118710.0,0.02776]
[1753764109341,2.14676293,118720.0,118710.0,0.003]
[1753764111043,2.14676293,118720.0,118710.0,0.02705]
[1753764111243,2.14676293,118720.0,118710.0,0.1955391]
[1753764112048,2.14676293,118720.0,118710.0,0.02705]
[1753764113147,2.14676293,118720.0,118710.0,0.1955391]
[1753764113953,2.14676293,118720.0,118710.0,0.1945391]
[1753764114450,2.14676293,118720.0,118710.0,0.1935391]
[1753764115552,1.47380293,118720.0,118710.0,0.1935391]
[1753764115753,2.14612293,118720.0,118710.0,0.1935391]
[1753764115954,2.14612293,118720.0,118710.0,0.02505]
[1753764117556,2.14612293,118720.0,118710.0,0.1935391]
[1753764119062,2.14612293,118720.0,118710.0,0.001]
[1753764119553,0.1932092,118710.0,118700.0,0.276794]
[1753764119756,0.59370102,118710.0,118700.0,0.276794]
[1753764120349,0.59370102,118710.0,118700.0,0.373314]
[1753764120550,1.24661724,118710.0,118700.0,0.373314]
[1753764120849,1.74661724,118710.0,118700.0,0.373314]
[1753764121450,1.73209724,118710.0,118700.0,0.373314]
[1753764121750,1.73209724,118710.0,118700.0,0.374314]
[1753764122154,1.56360804,118710.0,118700.0,0.374314]
[1753764122353,1.73209714,118710.0,118700.0,0.374314]
[1753764123259,1.56360804,118710.0,118700.0,0.374314]
[1753764123654,1.57812804,118710.0,118700.0,0.374314]
[1753764123857,1.74661714,118710.0,118700.0,0.374314]
[1753764125155,1.73209714,118710.0,118700.0,0.374314]
[1753764125348,1.74661714,118710.0,118700.0,0.375314]
[1753764125960,1.74661714,118710.0,118700.0,0.278794]
[1753764126264,1.74661714,118710.0,118700.0,0.375314]
[1753764126454,1.74661714,118710.0,118700.0,0.360124]
[1753764127663,1.74661714,118710.0,118700.0,0.375314]
[1753764129867,1.07429714,118710.0,118700.0,0.375314]
[1753764130170,1.74661714,118710.0,118700.0,0.45109004]
[1753764130667,1.74661714,118710.0,118700.0,0.278794]
[1753764131060,1.74661714,118710.0,118700.0,0.294354]
[1753764131262,1.74661714,118710.0,118700.0,0.375314]
[1753764132161,1.74661714,118710.0,118700.0,0.360124]
[1753764132362,1.74661714,118710.0,118700.0,0.327454]
[1753764134269,1.74661714,118710.0,118700.0,0.360794]
[1753764134469,1.74661714,118710.0,118700.0,0.294354]
[1753764135171,1.74661714,118710.0,118700.0,0.1704935]
[1753764135961,1.74661714,118710.0,118700.0,0.1705033]
[1753764136361,1.74661714,118710.0,118700.0,0.002]
[1753764136568,0.1929533,118700.0,118690.0,0.0421293]
[1753764136772,0.1929533,118700.0,118690.0,0.2334387]
[1753764136773,0.59404134,118700.0,118690.0,0.2334387]
[1753764137871,1.09404134,118700.0,118690.0,0.2334387]
[1753764138470,1.09404134,118700.0,118690.0,0.2364387]
[1753764138874,1.09404134,118700.0,118690.0,0.2156387]
[1753764139072,1.09404134,118700.0,118690.0,0.1735094]
[1753764139675,1.09404134,118700.0,118690.0,0.1963094]
[1753764140080,1.09404134,118700.0,118690.0,0.0278]
[1753764141573,1.09404134,118700.0,118690.0,0.1963175]
[1753764142269,1.09404134,118700.0,118690.0,0.0278]
[1753764144176,1.09404134,118700.0,118690.0,0.005]
[1753764145476,1.37512938,118700.0,118690.0,0.005]
[1753764145779,1.08904134,118700.0,118690.0,0.005]
[1753764149184,1.37012938,118700.0,118690.0,0.005]
[1753764149480,1.08904134,118700.0,118690.0,0.005]
[1753764150775,1.08904134,118700.0,118690.0,0.0278]
[1753764156988,1.08904134,118700.0,118690.0,0.005]
[1753764157381,1.08904134,118700.0,118690.0,0.0278]
[1753764167700,1.08904134,118700.0,118690.0,0.0228]
[1753764168085,1.08904134,118700.0,118690.0,0.0238]
[1753764168285,1.08904134,118700.0,118690.0,0.0248]
[1753764169885,1.37012938,118700.0,118690.0,0.0248]
[1753764170293,0.042136,118680.0,118670.0,0.01529]
[1753764170597,0.042136,118680.0,118670.0,0.04672]
[1753764170598,1.62658378,118680.0,118670.0,0.04672]
[1753764170797,0.2730159,118670.0,118660.0,0.07273]
[1753764171101,0.67410394,118670.0,118660.0,0.04672]
[1753764171592,0.68258104,118670.0,118660.0,0.04672]
[1753764172498,0.68258104,118670.0,118660.0,0.07171]
[1753764172798,1.18258104,118670.0,118660.0,0.07571]
[1753764173703,1.18258104,118670.0,118660.0,0.004]
[1753764174200,1.18258104,118670.0,118660.0,0.02899]
[1753764174500,1.18258104,118670.0,118660.0,0.03299]
[1753764174802,1.18258104,118670.0,118660.0,0.008]
[1753764175003,1.18258104,118670.0,118660.0,0.03299]
[1753764179598,0.2730443,118650.0,118640.0,0.2874162]
[1753764179795,1.34653234,118650.0,118640.0,0.11883]
[1753764179996,1.34653234,118650.0,118640.0,0.2874186]
[1753764180197,1.32374234,118650.0,118640.0,0.2874186]
[1753764180395,1.39002225,118650.0,118640.0,0.2874186]
[1753764181301,1.89002225,118650.0,118640.0,0.2874186]
[1753764181702,1.89002225,118650.0,118640.0,0.2924186]
[1753764181902,1.89002225,118650.0,118640.0,0.2964186]
[1753764182396,1.89002225,118650.0,118640.0,0.2914186]
[1753764182598,1.89002225,118650.0,118640.0,0.2934186]
[1753764182800,1.89002225,118650.0,118640.0,0.2914186]
[1753764182998,1.91281225,118650.0,118640.0,0.12283]
[1753764183304,1.91281225,118650.0,118640.0,0.2914186]
[1753764183799,1.91281225,118650.0,118640.0,0.12283]
[1753764184305,1.91281225,118650.0,118640.0,0.2914185]
[1753764184704,1.91281225,118650.0,118640.0,0.12283]
[1753764184904,1.91281225,118650.0,118640.0,0.2914185]
[1753764185108,1.91281225,118650.0,118640.0,0.12283]
[1753764186406,1.91281225,118650.0,118640.0,0.02899]
[1753764188802,1.91281225,118650.0,118640.0,0.004]
[1753764189395,2.19390029,118650.0,118640.0,0.004]
[1753764189601,1.91281225,118650.0,118640.0,0.004]
[1753764190517,1.91281225,118650.0,118640.0,0.02899]
[1753764191212,1.91281225,118650.0,118640.0,0.1975785]
[1753764191818,1.91281225,118650.0,118640.0,0.02899]
[1753764192116,1.91281225,118650.0,118640.0,0.1975785]
[1753764193814,1.91281225,118650.0,118640.0,0.02899]
[1753764196834,2.05425369,118650.0,118640.0,0.02899]
[1753764202226,2.05425369,118650.0,118640.0,0.004]
[1753764204328,2.26551843,118650.0,118640.0,0.004]
[1753764204922,0.1685885,118640.0,118630.0,0.0245]
[1753764205122,0.2169469,118620.0,118610.0,0.36561254]
[1753764205330,1.47941638,118620.0,118610.0,0.3048965]
[1753764205528,1.47941638,118620.0,118610.0,0.4313561]
[1753764205728,1.47941638,118620.0,118610.0,0.2872401]
[1753764205929,1.47941638,118620.0,118610.0,0.11862]
[1753764206132,0.2743811,118610.0,118600.0,0.36302944]
[1753764206332,0.50989584,118610.0,118600.0,0.49851814]
[1753764206624,0.79952,118610.0,118600.0,0.66714214]
[1753764206824,0.67252,118610.0,118600.0,0.98758281]
[1753764207033,0.5421488,118640.0,118630.0,0.2627227]
[1753764207034,0.90815371,118640.0,118630.0,0.2627227]
[1753764207241,1.90981411,118640.0,118630.0,0.2872227]
[1753764207425,1.90981411,118640.0,118630.0,0.2902227]
[1753764207939,1.23729411,118640.0,118630.0,0.2902227]
[1753764208139,1.90981411,118640.0,118630.0,0.2872227]
[1753764208336,1.17675411,118640.0,118630.0,0.2872227]
[1753764208540,1.5675687,118640.0,118630.0,0.2872227]
[1753764208733,1.5886787,118640.0,118630.0,0.2872227]
[1753764209235,1.6019887,118640.0,118630.0,0.2872227]
[1753764209736,0.252878,118650.0,118640.0,0.2872085]
[1753764209927,0.995398,118650.0,118640.0,0.2872085]
[1753764210128,0.07,118650.0,118640.0,0.2872085]
[1753764210345,0.9111743,118650.0,118640.0,0.56891391]
[1753764210640,0.7426,118650.0,118640.0,0.56891391]
[1753764211341,0.07,118650.0,118640.0,1.01487934]
[1753764211839,0.07,118650.0,118640.0,1.09063315]
[1753764212234,0.07,118650.0,118640.0,0.84063315]
[1753764212734,0.07,118650.0,118640.0,1.09063315]
[1753764213141,0.07,118650.0,118640.0,0.84063315]
[1753764213534,0.07,118650.0,118640.0,0.8321213]
[1753764213736,0.35170541,118650.0,118640.0,0.55041589]
[1753764214032,0.35170541,118650.0,118640.0,0.30609408]
[1753764214033,0.62582971,118650.0,118640.0,0.30609408]
[1753764214534,0.62582971,118650.0,118640.0,0.38184789]
[1753764215438,0.62582971,118650.0,118640.0,0.31243789]
[1753764215634,0.62582971,118650.0,118640.0,0.29103408]
[1753764215939,0.62582971,118650.0,118640.0,0.30609408]
[1753764217543,0.3441243,118650.0,118640.0,0.30609408]
[1753764217743,0.62582971,118650.0,118640.0,0.30609408]
[1753764218138,1.12582971,118650.0,118640.0,0.30609408]
[1753764218341,0.95725541,118650.0,118640.0,0.30609408]
[1753764218740,0.67555,118650.0,118640.0,0.30609408]
[1753764218946,0.95725541,118650.0,118640.0,0.30609408]
[1753764219637,1.12582971,118650.0,118640.0,0.30609408]
[1753764220847,0.95725541,118650.0,118640.0,0.30609408]
[1753764221046,0.59592,118650.0,118640.0,0.30609408]
[1753764221344,1.30314,118650.0,118640.0,0.30609408]
[1753764221750,0.82555,118650.0,118640.0,0.30609408]
[1753764221944,0.9941243,118650.0,118640.0,0.30609408]
[1753764222134,1.27582971,118650.0,118640.0,0.30609408]
[1753764222340,1.29862971,118650.0,118640.0,0.30609408]
[1753764223953,1.13005541,118650.0,118640.0,0.30609408]
[1753764224339,1.29862971,118650.0,118640.0,0.30609408]
[1753764227050,1.13005541,118650.0,118640.0,0.30609408]
[1753764227945,1.29862971,118650.0,118640.0,0.30609408]
[1753764228948,1.13005541,118650.0,118640.0,0.30609408]
[1753764229253,1.29862971,118650.0,118640.0,0.30609408]
[1753764236050,1.29862971,118650.0,118640.0,0.25918408]
[1753764236851,1.29862971,118650.0,118640.0,0.21223408]
[1753764237346,1.29862971,118650.0,118640.0,0.29263408]
[1753764237556,1.29862971,118650.0,118640.0,0.30742408]
[1753764242158,1.29862971,118650.0,118640.0,0.29263408]
[1753764242657,1.29862971,118650.0,118640.0,0.30742408]
[1753764243556,1.29862971,118650.0,118640.0,0.18747408]
[1753764243854,0.1184597,118640.0,118620.0,0.16005901]
[1753764244157,1.22860811,118630.0,118620.0,0.40128725]
[1753764244358,1.22860811,118630.0,118620.0,0.43502869]
[1753764244359,1.35860811,118630.0,118620.0,0.43502869]
[1753764244556,1.35860811,118630.0,118620.0,0.32880534]
[1753764245661,1.35860811,118630.0,118620.0,0.33180534]
[1753764245861,1.35860811,118630.0,118620.0,0.2559104]
[1753764246159,1.85860811,118630.0,118620.0,0.003]
[1753764247254,0.0911452,118620.0,118600.0,0.38627294]
[1753764247462,1.17677661,118610.0,118600.0,0.358118]
[1753764247661,1.29677661,118610.0,118600.0,0.372908]
[1753764247854,1.29477661,118610.0,118600.0,0.372908]
[1753764249060,1.29477661,118610.0,118600.0,0.381908]
[1753764250765,1.29477661,118610.0,118600.0,0.261958]
[1753764251057,1.29477661,118610.0,118600.0,0.286718]
[1753764251257,1.29477661,118610.0,118600.0,0.296318]
[1753764251455,1.29477661,118610.0,118600.0,0.367118]
[1753764251662,1.29477661,118610.0,118600.0,0.381908]
[1753764252565,1.30301074,118610.0,118600.0,0.381908]
[1753764255365,1.29477661,118610.0,118600.0,0.381908]
[1753764255562,1.30301242,118610.0,118600.0,0.381908]
[1753764257268,1.29477661,118610.0,118600.0,0.381908]
[1753764258169,1.30310338,118610.0,118600.0,0.381908]
[1753764266870,1.29477661,118610.0,118600.0,0.381908]
[1753764276174,1.0130712,118610.0,118600.0,0.381908]
[1753764276366,1.29477661,118610.0,118600.0,0.381908]
[1753764277272,1.0130712,118610.0,118600.0,0.381908]
[1753764277476,1.29477661,118610.0,118600.0,0.381908]
[1753764279770,0.3899812,118610.0,118600.0,0.381908]
[1753764280078,1.34532661,118610.0,118600.0,0.381908]
[1753764281277,0.67168661,118610.0,118600.0,0.381908]
[1753764281476,1.34548661,118610.0,118600.0,0.381908]
[1753764281680,0.67168661,118610.0,118600.0,0.381908]
[1753764281977,1.34544661,118610.0,118600.0,0.381908]
[1753764282179,0.67168661,118610.0,118600.0,0.381908]
[1753764282477,1.34544661,118610.0,118600.0,0.381908]
[1753764282883,1.34544661,118610.0,118600.0,0.45780294]
[1753764286080,1.34544661,118610.0,118600.0,0.381908]
[1753764286284,1.34544661,118610.0,118600.0,0.45780294]
[1753764286883,1.27507218,118610.0,118600.0,0.45780294]
[1753764287272,1.10644098,118610.0,118600.0,0.45780294]
[1753764287483,1.27507208,118610.0,118600.0,0.66913392]
[1753764287685,1.27507208,118610.0,118600.0,0.45780294]
[1753764289087,1.27507208,118610.0,118600.0,0.381908]
[1753764290792,1.27507208,118610.0,118600.0,0.45780294]
[1753764290984,1.10644098,118610.0,118600.0,0.381908]
[1753764291492,0.02493,118610.0,118600.0,0.80456996]
[1753764291697,0.70694,118620.0,118610.0,0.2879311]
[1753764291698,0.96543098,118620.0,118610.0,0.2879311]
[1753764292000,1.07543098,118620.0,118610.0,0.49926208]
[1753764292400,1.30656196,118620.0,118610.0,0.49926208]
[1753764292799,1.30656196,118620.0,118610.0,0.2879311]
[1753764293002,1.30656196,118620.0,118610.0,0.49926208]
[1753764293204,1.30656196,118620.0,118610.0,0.36382604]
[1753764293402,1.30656196,118620.0,118610.0,0.57815702]
[1753764294901,1.16560268,118620.0,118610.0,0.36882604]
[1753764295404,1.16560268,118620.0,118610.0,0.2929311]
[1753764295800,1.16560268,118620.0,118610.0,0.36882604]
[1753764299298,0.8839,118620.0,118610.0,0.36882604]
[1753764299497,1.16560268,118620.0,118610.0,0.36882604]
[1753764300403,0.19046,118620.0,118610.0,0.65052872]
[1753764300608,0.51725118,118640.0,118630.0,0.2158127]
[1753764300797,0.45866268,118640.0,118630.0,0.2879027]
[1753764301004,0.83516,118640.0,118630.0,0.2879027]
[1753764301207,1.83855118,118640.0,118630.0,0.2879027]
[1753764301806,1.83855118,118640.0,118630.0,0.2729627]
[1753764302908,1.16996268,118640.0,118630.0,0.2729627]
[1753764303212,1.16996268,118640.0,118630.0,0.2879027]
[1753764303905,0.86846,118640.0,118630.0,0.56960538]
[1753764304407,0.11,118640.0,118630.0,0.56960538]
[1753764304708,0.81091,118640.0,118630.0,0.56960538]
[1753764304903,0.16887,118640.0,118630.0,0.56960538]
[1753764305211,0.87022,118640.0,118630.0,0.2879027]
[1753764305714,0.89002,118640.0,118630.0,0.2879027]
[1753764305903,0.89002,118640.0,118630.0,0.56960538]
[1753764306503,0.37062054,118660.0,118650.0,0.2878743]
[1753764306504,0.84718494,118660.0,118650.0,0.2878743]
[1753764306710,0.95730494,118660.0,118650.0,0.2878743]
[1753764306912,0.27742494,118660.0,118650.0,0.2878743]
[1753764307211,0.95726494,118660.0,118650.0,0.2878743]
[1753764307909,0.77742494,118660.0,118650.0,0.2878743]
[1753764308307,1.73892762,118660.0,118650.0,0.2878743]
[1753764309210,1.74092762,118660.0,118650.0,0.2878743]
[1753764310209,1.74292762,118660.0,118650.0,0.2878743]
[1753764313109,1.91148772,118660.0,118650.0,0.2878743]
[1753764313306,1.74292762,118660.0,118650.0,0.2878743]
[1753764314814,1.91148772,118660.0,118650.0,0.2878743]
[1753764315113,1.91148772,118660.0,118650.0,0.2402543]
[1753764315316,1.91148772,118660.0,118650.0,0.2180343]
[1753764316015,1.74292762,118660.0,118650.0,0.2180343]
[1753764316321,1.91148772,118660.0,118650.0,0.2180343]
[1753764317410,1.91148772,118660.0,118650.0,0.1685743]
[1753764317817,1.99577322,118660.0,118650.0,0.1685743]
[1753764318015,0.1685743,118650.0,118640.0,0.295012]
[1753764318314,0.58027698,118650.0,118640.0,0.295012]
[1753764319614,0.58127698,118650.0,118640.0,0.295012]
[1753764320209,0.58227698,118650.0,118640.0,0.295012]
[1753764320517,1.08227698,118650.0,118640.0,0.295012]
[1753764322219,1.08227698,118650.0,118640.0,0.2528658]
[1753764323018,1.08227698,118650.0,118640.0,0.2770358]
[1753764330425,1.08227698,118650.0,118640.0,0.234891]
[1753764332417,0.1685885,118640.0,118630.0,0.2770599]
[1753764332625,1.51031386,118640.0,118630.0,0.2770599]
[1753764333125,1.22861118,118640.0,118630.0,0.2770599]
[1753764333324,0.1686027,118630.0,118620.0,0.2821867]
[1753764333521,0.58030538,118630.0,118620.0,0.3701901]
[1753764334021,0.58866253,118630.0,118620.0,0.3701901]
[1753764336326,1.08866253,118630.0,118620.0,0.3701901]
[1753764336827,1.08866253,118630.0,118620.0,0.3027901]
[1753764337128,1.08866253,118630.0,118620.0,0.3345701]
[1753764337327,1.08866253,118630.0,118620.0,0.3701901]
[1753764337722,1.08866253,118630.0,118620.0,0.3711901]
[1753764338727,1.08866253,118630.0,118620.0,0.3721901]
[1753764350731,1.22952411,118630.0,118620.0,0.3721901]
[1753764353841,1.01824198,118630.0,118620.0,0.3721901]
[1753764354343,1.00988483,118630.0,118620.0,0.3721901]
[1753764356338,0.84128213,118630.0,118620.0,0.58347223]
[1753764356535,1.30632,118630.0,118620.0,0.79475436]
[1753764356729,0.84128213,118630.0,118620.0,0.58347223]
[1753764357039,1.30624,118630.0,118620.0,0.58347223]
[1753764357237,0.80624,118630.0,118620.0,0.58347223]
[1753764357737,1.01752213,118630.0,118620.0,0.58347223]
[1753764358446,0.34128213,118630.0,118620.0,0.58347223]
[1753764358743,0.80624,118630.0,118620.0,0.3721901]
[1753764359134,0.9748427,118630.0,118620.0,0.3721901]
[1753764360546,1.25648454,118630.0,118620.0,0.3721901]
[1753764360742,1.25648454,118630.0,118620.0,0.2790801]
[1753764362041,1.75648454,118630.0,118620.0,0.2790801]
[1753764362845,1.75648454,118630.0,118620.0,0.3510701]
[1753764363045,1.75648454,118630.0,118620.0,0.3723701]
[1753764367647,1.58788184,118630.0,118620.0,0.3723701]
[1753764368049,1.75648454,118630.0,118620.0,0.3723701]
[1753764371749,1.08024454,118630.0,118620.0,0.3723701]
[1753764371951,1.75596454,118630.0,118620.0,0.3723701]
[1753764372152,1.25596454,118630.0,118620.0,0.3723701]
[1753764372351,1.25596454,118630.0,118620.0,0.44826504]
[1753764372754,1.25596454,118630.0,118620.0,0.3723701]
[1753764373060,1.25596454,118630.0,118620.0,0.44826504]
[1753764374954,0.41164184,118630.0,118620.0,0.44826504]
[1753764375161,0.8056,118630.0,118620.0,0.72990688]
[1753764375462,0.13,118630.0,118620.0,0.72990688]
[1753764375656,0.2107312,118650.0,118640.0,0.2143685]
[1753764375959,1.29789304,118650.0,118640.0,0.2861785]
[1753764376859,1.79789304,118650.0,118640.0,0.2861785]
[1753764377658,1.79889304,118650.0,118640.0,0.2861785]
[1753764378567,1.79989304,118650.0,118640.0,0.2861785]
[1753764378869,1.79981304,118650.0,118640.0,0.2861785]
[1753764380469,0.1685884,118640.0,118630.0,0.28663774]
[1753764380666,0.86187208,118640.0,118630.0,0.2107428]
[1753764381063,0.86187208,118640.0,118630.0,0.2344428]
[1753764381265,0.58023024,118640.0,118630.0,0.2344428]
[1753764381671,0.86187208,118640.0,118630.0,0.2344428]
[1753764382070,0.86187208,118640.0,118630.0,0.1685953]
[1753764382270,0.1686027,118630.0,118620.0,0.2766138]
[1753764382471,1.23604454,118630.0,118620.0,0.2766138]
[1753764383572,1.23604454,118630.0,118620.0,0.35250874]
[1753764384473,1.23604454,118630.0,118620.0,0.35350874]
[1753764385072,1.73604454,118630.0,118620.0,0.35350874]
[1753764385577,1.73604454,118630.0,118620.0,0.2776138]
[1753764386176,1.73604454,118630.0,118620.0,0.2786138]
[1753764392177,1.73604454,118630.0,118620.0,0.2364602]
[1753764393277,1.73604454,118630.0,118620.0,0.1943066]
[1753764393476,1.73604454,118630.0,118620.0,0.1706066]
[1753764394067,1.73604454,118630.0,118620.0,0.1943066]
[1753764404786,1.06024454,118630.0,118620.0,0.1943066]
[1753764404986,1.73440454,118630.0,118620.0,0.2900266]
[1753764405488,1.06024454,118630.0,118620.0,0.2900266]
[1753764405685,1.73452454,118630.0,118620.0,0.2900266]
[1753764406880,1.06024454,118630.0,118620.0,0.2900266]
[1753764407082,1.73440454,118630.0,118620.0,0.2900266]
[1753764407584,1.06024454,118630.0,118620.0,0.2900266]
[1753764407785,1.73436454,118630.0,118620.0,0.2900266]
[1753764407986,1.06024454,118630.0,118620.0,0.2900266]
[1753764408181,1.73436454,118630.0,118620.0,0.2900266]
[1753764408588,0.7786027,118630.0,118620.0,0.2900266]
[1753764408785,0.61,118630.0,118620.0,0.57166844]
[1753764408990,1.17424,118630.0,118620.0,0.57166844]
[1753764409386,0.67424,118630.0,118620.0,0.2900266]
[1753764409689,0.67424,118630.0,118620.0,0.57166844]
[1753764410077,0.53451704,118650.0,118640.0,0.2641584]
[1753764410280,1.33875704,118650.0,118640.0,0.2877384]
[1753764410690,1.83875704,118650.0,118640.0,0.2877384]
[1753764410889,1.85860778,118650.0,118640.0,0.2877384]
[1753764411088,1.53470004,118650.0,118640.0,0.2877384]
[1753764411290,1.81634188,118650.0,118640.0,0.2877384]
[1753764411485,1.53470004,118650.0,118640.0,0.2877384]
[1753764411786,1.81634188,118650.0,118640.0,0.2877384]
[1753764411994,1.12237114,118650.0,118640.0,0.2877384]
[1753764412194,1.79661114,118650.0,118640.0,0.2877384]
[1753764412692,1.79761114,118650.0,118640.0,0.2877384]
[1753764413490,1.79861114,118650.0,118640.0,0.2877384]
[1753764413788,1.75646744,118650.0,118640.0,0.2877384]
[1753764414182,0.132,118650.0,118640.0,0.56938024]
[1753764414386,0.002,118650.0,118640.0,1.01959008]
[1753764414587,0.002,118650.0,118640.0,0.73794824]
[1753764414988,0.002,118650.0,118640.0,0.98794824]
[1753764415494,1e-07,118650.0,118640.0,0.98794824]
[1753764415692,1e-07,118650.0,118640.0,1.26959008]
[1753764416087,1e-07,118650.0,118640.0,1.34548502]
[1753764416294,1e-07,118650.0,118640.0,0.98794824]
[1753764416491,1e-07,118650.0,118640.0,1.06484318]
[1753764416789,1e-07,118650.0,118640.0,1.27059008]
[1753764416992,0.06620305,118670.0,118660.0,0.21595]
[1753764417195,0.11,118670.0,118660.0,0.28771]
[1753764418591,0.11,118670.0,118660.0,0.56935184]
[1753764418894,0.11,118670.0,118660.0,0.28771]
[1753764420096,0.56018764,118670.0,118660.0,0.28771]
[1753764420397,0.81479198,118670.0,118660.0,0.16856]
[1753764420598,0.79497499,118670.0,118660.0,0.16856]
[1753764421200,1.29497499,118670.0,118660.0,0.16856]
[1753764421502,0.1685742,118650.0,118640.0,0.2548693]
[1753764421698,1.25449604,118650.0,118640.0,0.1705765]